bitfinex-derivatives/quotes_BTCF0:USTF0_20250308
["timestamp","ask_amount","ask_price","bid_price","bid_amount"]
[1741437190098,0.1982935,86153.0,86152.0,0.1781948]
[1741437190305,0.1982935,86153.0,86152.0,0.0621]
[1741437192900,0.2002935,86153.0,86152.0,0.0621]
[1741437193103,0.20038038,86153.0,86152.0,0.0621]
[1741437193297,0.2002935,86153.0,86152.0,0.0621]
[1741437194504,0.2323935,86153.0,86152.0,0.0621]
[1741437194902,0.23861231,86153.0,86152.0,0.0621]
[1741437195804,0.23661231,86153.0,86152.0,0.0621]
[1741437196001,0.25813928,86153.0,86152.0,0.0621]
[1741437196310,0.2363935,86153.0,86152.0,0.0621]
[1741437196508,0.2538335,86153.0,86152.0,0.0621]
[1741437197702,0.2548335,86153.0,86152.0,0.0621]
[1741437197903,0.25901512,86153.0,86152.0,0.0621]
[1741437198315,0.26001512,86153.0,86152.0,0.0621]
[1741437199415,0.2558335,86153.0,86152.0,0.0621]
[1741437199713,0.2548335,86153.0,86152.0,0.0621]
[1741437200413,0.39353427,86153.0,86152.0,0.0621]
[1741437201209,0.1160948,86152.0,86151.0,0.00017409]
[1741437201507,0.11620515,86152.0,86151.0,0.00017409]
[1741437201703,0.17932683,86152.0,86151.0,0.00017409]
[1741437201904,0.18337629,86152.0,86151.0,0.00017409]
[1741437202100,0.18351552,86152.0,86151.0,0.00017409]
[1741437202306,0.18348289,86152.0,86151.0,0.00017409]
[1741437202612,0.18337629,86152.0,86151.0,0.00017409]
[1741437202809,0.18637629,86152.0,86151.0,0.00017409]
[1741437203020,0.50751658,86152.0,86151.0,0.00017409]
[1741437203913,0.35953753,86152.0,86151.0,0.00017409]
[1741437204114,0.361859,86152.0,86151.0,0.00017409]
[1741437204308,0.36067751,86152.0,86151.0,0.00017409]
[1741437204816,0.51467751,86152.0,86151.0,0.00017409]
[1741437205212,0.51467751,86152.0,86151.0,1.582e-05]
[1741437205213,0.73333154,86152.0,86151.0,1.582e-05]
[1741437205715,0.73431059,86152.0,86151.0,1.582e-05]
[1741437206704,0.1161244,86130.0,86129.0,0.0323]
[1741437206915,0.1983244,86130.0,86129.0,0.0323]
[1741437207420,0.21031186,86130.0,86129.0,0.0323]
[1741437207714,0.21021008,86130.0,86129.0,0.0323]
[1741437207914,0.09408568,86130.0,86129.0,0.1484258]
[1741437208115,0.09408568,86130.0,86129.0,0.0323]
[1741437208116,0.21021008,86130.0,86129.0,0.0323]
[1741437208617,0.21021008,86130.0,86129.0,0.1484258]
[1741437208805,0.21021008,86130.0,86129.0,0.0323]
[1741437209006,0.21021008,86130.0,86129.0,0.0223]
[1741437209217,0.21021008,86130.0,86129.0,0.0553]
[1741437209408,0.3608,86135.0,86129.0,0.0553]
[1741437209615,0.0822,86134.0,86133.0,0.1161204]
[1741437209812,0.198319,86134.0,86133.0,0.1161204]
[1741437210417,0.198319,86134.0,86133.0,0.1276045]
[1741437210817,0.3608,86135.0,86134.0,0.116119]
[1741437211120,0.5591177,86135.0,86134.0,0.116119]
[1741437212021,0.56800571,86135.0,86134.0,0.116119]
[1741437212322,0.56800571,86135.0,86134.0,0.148619]
[1741437212712,0.56813296,86135.0,86134.0,0.148619]
[1741437212913,0.56900571,86135.0,86134.0,0.0325]
[1741437213113,0.5690986,86135.0,86134.0,0.0325]
[1741437213309,0.56900571,86135.0,86134.0,0.0325]
[1741437213517,0.56914893,86135.0,86134.0,0.0325]
[1741437213723,0.56900571,86135.0,86134.0,0.0325]
[1741437215714,0.57000571,86135.0,86134.0,0.0325]
[1741437215919,0.63480571,86135.0,86134.0,0.0325]
[1741437216222,0.57000571,86135.0,86134.0,0.0325]
[1741437216428,0.22664571,86135.0,86134.0,0.0325]
[1741437216616,0.22672705,86135.0,86134.0,0.0325]
[1741437216815,0.22678514,86135.0,86134.0,0.0325]
[1741437217019,0.22675367,86135.0,86134.0,0.0325]
[1741437217224,0.36559261,86135.0,86134.0,0.0325]
[1741437217419,0.24947491,86135.0,86134.0,0.0325]
[1741437217727,0.24947491,86135.0,86134.0,0.148619]
[1741437217924,0.36359261,86135.0,86134.0,0.148619]
[1741437218147,0.36559261,86135.0,86134.0,0.148619]
[1741437219444,0.24847491,86135.0,86134.0,0.148619]
[1741437219642,0.36459261,86135.0,86134.0,0.148619]
[1741437221341,0.22564571,86135.0,86134.0,0.148619]
[1741437221945,0.22577059,86135.0,86134.0,0.148619]
[1741437222146,0.22473348,86135.0,86134.0,0.148619]
[1741437222446,0.10852801,86135.0,86134.0,0.148619]
[1741437223645,0.1389469,86137.0,86136.0,0.1161163]
[1741437223845,0.73232001,86141.0,86135.0,0.0329]
[1741437224040,0.73172,86141.0,86140.0,0.4769109]
[1741437224842,0.73186525,86141.0,86140.0,0.4769109]
[1741437228134,0.73186525,86141.0,86140.0,0.5102109]
[1741437228342,0.73186525,86141.0,86140.0,0.6602109]
[1741437229043,0.00014525,86141.0,86140.0,0.6602109]
[1741437229245,0.20870736,86149.0,86148.0,0.1161002]
[1741437229246,0.1044411,86149.0,86148.0,0.1161002]
[1741437229439,0.1044411,86149.0,86148.0,0.4769002]
[1741437229846,0.09115396,86149.0,86148.0,0.4769002]
[1741437230048,0.09115396,86149.0,86148.0,0.5399002]
[1741437230250,0.09128477,86149.0,86148.0,0.5399002]
[1741437231144,0.07028476,86149.0,86148.0,0.5399002]
[1741437231342,0.07228476,86149.0,86148.0,0.5399002]
[1741437233255,0.00213081,86149.0,86148.0,0.5399002]
[1741437235646,0.01744,86168.0,86156.0,0.0580443]
[1741437235944,0.73232001,86170.0,86169.0,0.1160719]
[1741437236140,0.73172,86170.0,86169.0,0.1160719]
[1741437236346,0.79642,86170.0,86169.0,0.1160719]
[1741437236544,0.79642,86170.0,86169.0,0.12764643]
[1741437236844,0.79642,86170.0,86169.0,0.18894643]
[1741437237156,0.74026162,86170.0,86169.0,0.18894643]
[1741437237355,0.73172,86170.0,86169.0,0.18894643]
[1741437237546,0.73180304,86170.0,86169.0,0.54974643]
[1741437238848,0.71080303,86170.0,86169.0,0.54974643]
[1741437239554,0.71280303,86170.0,86169.0,0.54974643]
[1741437242852,0.031,86175.0,86169.0,0.69974643]
[1741437243151,0.73148,86199.0,86198.0,0.1160328]
[1741437243356,0.74066227,86199.0,86198.0,0.1160328]
[1741437243542,0.73148,86199.0,86198.0,0.1160328]
[1741437243957,0.7316043,86199.0,86198.0,0.1160328]
[1741437244348,0.00017371,86207.0,86204.0,0.1160247]
[1741437244553,0.00017371,86207.0,86204.0,0.4768247]
[1741437244952,0.00017371,86207.0,86204.0,0.48819867]
[1741437245259,0.28980112,86205.0,86204.0,0.1489247]
[1741437245459,0.17377772,86205.0,86204.0,0.1489247]
[1741437245660,0.1488228,86206.0,86205.0,0.1160234]
[1741437245852,0.0328,86206.0,86197.0,0.0580169]
[1741437246054,0.1160342,86197.0,86196.0,0.4768327]
[1741437246256,0.1740391,86205.0,86204.0,0.1160247]
[1741437246656,0.0580117,86205.0,86204.0,0.1160247]
[1741437246856,0.075436,86229.0,86196.0,0.4768329]
[1741437246857,0.1160342,86197.0,86196.0,0.4768329]
[1741437247154,0.1160288,86203.0,86202.0,0.1160251]
[1741437247352,0.1982288,86203.0,86202.0,0.1160251]
[1741437247666,0.005,86205.0,86204.0,0.1160247]
[1741437247965,0.08917937,86205.0,86204.0,0.1160247]
[1741437248862,0.005,86205.0,86204.0,0.1474247]
[1741437249060,0.005,86205.0,86204.0,0.1589352]
[1741437249257,0.0332,86206.0,86204.0,0.1589352]
[1741437249560,0.0332,86206.0,86205.0,0.1160234]
[1741437249757,0.0332,86206.0,86205.0,0.1480234]
[1741437249953,0.0332,86206.0,86205.0,0.1794234]
[1741437250558,0.00017371,86207.0,86206.0,0.116022]
[1741437250762,0.00027149,86207.0,86206.0,0.116022]
[1741437251055,0.00027149,86207.0,86206.0,0.181122]
[1741437252463,0.00027149,86207.0,86206.0,0.19393163]
[1741437252655,0.00027149,86207.0,86206.0,0.19393233]
[1741437253457,0.00427149,86207.0,86206.0,0.19493233]
[1741437254661,0.00427149,86207.0,86206.0,0.19495274]
[1741437255251,0.00427149,86207.0,86206.0,0.16185274]
[1741437255460,0.00427149,86207.0,86206.0,0.19265274]
[1741437256556,0.00427149,86207.0,86206.0,0.179822]
[1741437257564,0.00427149,86207.0,86206.0,0.19260082]
[1741437259869,0.00417371,86207.0,86206.0,0.04577882]
[1741437260065,0.00417371,86207.0,86206.0,0.01377882]
[1741437260366,0.20277867,86207.0,86206.0,0.01377882]
[1741437260675,0.08665371,86207.0,86206.0,0.117022]
[1741437260860,0.23467441,86207.0,86206.0,0.001]
[1741437261167,0.11865371,86207.0,86206.0,0.117022]
[1741437261370,0.11865371,86207.0,86206.0,0.001]
[1741437261567,0.23467441,86207.0,86206.0,0.001]
[1741437262665,0.11865371,86207.0,86206.0,0.117022]
[1741437262864,0.00417371,86207.0,86206.0,0.117022]
[1741437263061,0.00428991,86207.0,86206.0,0.540122]
[1741437266374,0.12019441,86207.0,86206.0,0.540122]
[1741437266563,0.12019441,86207.0,86206.0,0.3618]
[1741437267265,0.12019441,86207.0,86206.0,0.477822]
[1741437267463,0.18349441,86207.0,86206.0,0.477822]
[1741437267773,0.06747371,86207.0,86206.0,0.477822]
[1741437271058,0.03557371,86207.0,86206.0,0.477822]
[1741437271263,0.03557371,86207.0,86206.0,0.540022]
[1741437271264,0.03570764,86207.0,86206.0,0.540022]
[1741437272563,0.00430764,86207.0,86206.0,0.540022]
[1741437274076,0.00130764,86207.0,86206.0,0.539022]
[1741437276880,0.0317,86218.0,86217.0,0.1160072]
[1741437277082,0.0639,86218.0,86217.0,0.48991008]
[1741437277768,0.0639,86218.0,86217.0,0.55281008]
[1741437278169,0.0679,86218.0,86217.0,0.55281008]
[1741437278678,0.0679,86218.0,86217.0,0.55285509]
[1741437280870,0.0679,86218.0,86217.0,0.56432557]
[1741437281377,0.06799349,86218.0,86217.0,0.56432557]
[1741437281573,0.06802078,86218.0,86217.0,0.56432557]
[1741437281773,0.06799896,86218.0,86217.0,0.56432557]
[1741437281976,0.0679,86218.0,86217.0,0.56432557]
[1741437283780,0.0362,86218.0,86217.0,0.58572629]
[1741437283969,0.0362,86218.0,86217.0,0.57425581]
[1741437284876,0.03629274,86218.0,86217.0,0.58609914]
[1741437285083,0.0362,86218.0,86217.0,0.58609914]
[1741437285385,0.004,86218.0,86217.0,0.58609914]
[1741437285588,0.0040998,86218.0,86217.0,0.58609914]
[1741437285777,0.0040998,86218.0,86217.0,0.6269118]
[1741437286581,0.0040998,86218.0,86217.0,0.64217353]
[1741437286784,0.73148,86227.0,86226.0,0.1159951]
[1741437287083,0.73148,86227.0,86226.0,0.51227686]
[1741437287281,0.73148,86227.0,86226.0,0.57737686]
[1741437287585,0.73148,86227.0,86226.0,0.59182812]
[1741437288175,0.73748,86227.0,86226.0,0.59282812]
[1741437288480,0.7462546,86227.0,86226.0,0.59282812]
[1741437288674,0.74624647,86227.0,86226.0,0.59282812]
[1741437288884,0.74625388,86227.0,86226.0,0.59282812]
[1741437289084,0.74612629,86227.0,86226.0,0.59282812]
[1741437291877,0.01464629,86227.0,86226.0,0.59282812]
[1741437292482,0.0304,86230.0,86226.0,0.59182812]
[1741437292782,0.13894589,86239.0,86238.0,0.115979]
[1741437292983,0.13894589,86239.0,86238.0,0.15146076]
[1741437293188,0.13909433,86239.0,86238.0,0.15146076]
[1741437293386,0.13909433,86239.0,86238.0,0.24786076]
[1741437293889,0.00014844,86239.0,86238.0,0.22602566]
[1741437294783,0.00014844,86239.0,86238.0,0.24764092]
[1741437295694,0.13894589,86240.0,86239.0,0.1159776]
[1741437295695,0.11909432,86240.0,86239.0,0.1159776]
[1741437295991,0.11909432,86240.0,86239.0,0.15123952]
[1741437296290,0.11909432,86240.0,86239.0,0.24228809]
[1741437296485,0.11918789,86240.0,86239.0,0.2420986]
[1741437298087,0.12018789,86240.0,86239.0,0.2430986]
[1741437298595,0.12018789,86240.0,86239.0,0.24321093]
[1741437298990,0.00109357,86240.0,86239.0,0.24321093]
[1741437299890,0.00109357,86240.0,86239.0,0.22884348]
[1741437300086,7e-08,86240.0,86239.0,0.22884348]
[1741437300282,0.731,86248.0,86239.0,0.11286588]
[1741437300588,0.3608,86268.0,86267.0,0.11594]
[1741437300787,0.3608,86268.0,86267.0,0.15112476]
[1741437301385,0.36943722,86268.0,86267.0,0.15112476]
[1741437301686,0.00863722,86268.0,86267.0,0.51192476]
[1741437301889,0.0323,86271.0,86270.0,0.115936]
[1741437302088,0.0323,86271.0,86270.0,0.15112076]
[1741437302686,0.17377772,86273.0,86270.0,0.03518476]
[1741437302881,0.17377772,86273.0,86272.0,0.1159333]
[1741437303086,0.1738849,86273.0,86272.0,0.15111806]
[1741437303397,0.00010718,86273.0,86272.0,0.54401806]
[1741437303780,0.00010718,86273.0,86272.0,0.54335078]
[1741437304397,0.0322,86283.0,86272.0,0.54335078]
[1741437304398,0.17377772,86288.0,86287.0,0.1159131]
[1741437304588,0.17377772,86288.0,86287.0,0.15043058]
[1741437304989,0.20853327,86293.0,86287.0,0.15043058]
[1741437304990,9e-08,86293.0,86292.0,0.1159064]
[1741437305295,9e-08,86293.0,86292.0,0.51122388]
[1741437305592,0.08236009,86293.0,86292.0,0.15042388]
[1741437305788,0.08236009,86293.0,86292.0,0.16466859]
[1741437306483,0.08248843,86293.0,86292.0,0.16466859]
[1741437306891,9e-08,86293.0,86292.0,0.16466859]
[1741437307291,0.11590519,86293.0,86292.0,0.16466859]
[1741437307887,0.11590519,86293.0,86292.0,0.16515231]
[1741437308195,0.11590519,86293.0,86292.0,0.04924591]
[1741437308395,0.11590519,86293.0,86292.0,0.0350012]
[1741437308592,0.1780051,86293.0,86292.0,0.01346183]
[1741437308983,0.1800224,86293.0,86292.0,0.01346183]
[1741437309793,0.0641173,86293.0,86292.0,0.12936823]
[1741437309992,0.0641173,86293.0,86292.0,0.15095865]
[1741437309993,0.1463173,86293.0,86292.0,0.15095865]
[1741437310390,0.1463173,86293.0,86292.0,0.16529448]
[1741437310696,0.1443,86293.0,86292.0,0.16529448]
[1741437310899,0.2602051,86293.0,86292.0,0.16529448]
[1741437311193,0.2602051,86293.0,86292.0,0.0503118]
[1741437311389,0.2602051,86293.0,86292.0,0.1662182]
[1741437311593,0.0621,86293.0,86292.0,0.1662182]
[1741437311787,0.11306,86293.0,86292.0,0.1662182]
[1741437311990,0.11306,86293.0,86292.0,0.55505566]
[1741437312393,0.11306,86293.0,86292.0,0.0503118]
[1741437312394,1.1005651,86293.0,86292.0,0.0503118]
[1741437312698,0.1159225,86280.0,86275.0,0.20571285]
[1741437312896,0.1984425,86280.0,86275.0,0.20571285]
[1741437313093,0.1984425,86280.0,86260.0,0.04240684]
[1741437313094,0.1159481,86261.0,86260.0,0.04240684]
[1741437313294,0.1984681,86261.0,86260.0,0.04240684]
[1741437313604,0.1159494,86260.0,86259.0,0.12995341]
[1741437313898,0.1159494,86260.0,86259.0,0.1159506]
[1741437313899,0.1478494,86260.0,86259.0,0.1159506]
[1741437314196,0.1478494,86260.0,86258.0,0.17121285]
[1741437314197,0.11442296,86260.0,86258.0,0.17121285]
[1741437314397,0.11604818,86259.0,86258.0,0.28716435]
[1741437314600,0.1159508,86259.0,86258.0,0.28716435]
[1741437314790,0.1428508,86259.0,86258.0,0.28716435]
[1741437315098,0.1428508,86259.0,86258.0,0.17121285]
[1741437315510,0.1428508,86259.0,86258.0,0.28716495]
[1741437315800,0.1754508,86259.0,86258.0,0.28716495]
[1741437316195,0.0645,86259.0,86258.0,0.28716495]
[1741437316390,0.09130513,86260.0,86259.0,0.1159508]
[1741437316591,0.08244,86260.0,86259.0,0.1159508]
[1741437316792,0.08244,86260.0,86259.0,0.12995361]
[1741437316993,0.08244,86260.0,86259.0,0.1159508]
[1741437317590,0.148442,86266.0,86258.0,0.01400281]
[1741437317795,0.0325,86266.0,86265.0,0.1159427]
[1741437317997,0.00017316,86268.0,86266.0,0.1159413]
[1741437318304,0.00017316,86268.0,86267.0,0.14674]
[1741437318689,0.08249316,86268.0,86267.0,0.14674]
[1741437319101,0.08349316,86268.0,86267.0,0.14674]
[1741437319792,0.00117316,86268.0,86267.0,0.14674]
[1741437320601,0.05731535,86270.0,86269.0,0.1159373]
[1741437321101,0.73120001,86274.0,86267.0,0.0887695]
[1741437321302,0.7306,86274.0,86273.0,0.1159319]
[1741437321788,0.7306,86274.0,86273.0,0.1784319]
[1741437321987,0.7306,86274.0,86273.0,0.20650048]
[1741437322193,0.8466158,86274.0,86273.0,0.20650048]
[1741437322399,0.8465306,86274.0,86273.0,0.20650048]
[1741437322596,0.8465306,86274.0,86273.0,0.22896753]
[1741437322794,0.84666184,86274.0,86273.0,0.2528056]
[1741437323099,0.7306,86274.0,86273.0,0.2528056]
[1741437323696,0.73270338,86274.0,86273.0,0.2528056]
[1741437323988,0.73270338,86274.0,86273.0,0.26574288]
[1741437324395,0.70660869,86274.0,86273.0,0.26574288]
[1741437324600,0.70660869,86274.0,86273.0,0.27996676]
[1741437324798,0.70660869,86274.0,86273.0,0.26702948]
[1741437325099,0.70660869,86274.0,86273.0,0.2540102]
[1741437325304,0.53263105,86274.0,86273.0,0.2540102]
[1741437325504,0.53263105,86274.0,86273.0,0.23017213]
[1741437326599,0.53263105,86274.0,86273.0,0.27152178]
[1741437326798,0.53263105,86274.0,86273.0,0.23017213]
[1741437327004,0.49438859,86274.0,86273.0,0.27152263]
[1741437327201,0.49438859,86274.0,86273.0,0.27452263]
[1741437327506,0.08208,86290.0,86289.0,0.1159104]
[1741437327803,0.1159038,86294.0,86292.0,0.1159064]
[1741437328102,0.20034278,86293.0,86292.0,0.16554019]
[1741437328406,0.20034278,86293.0,86292.0,0.20431132]
[1741437328798,0.20034278,86293.0,86292.0,0.25506846]
[1741437329405,0.08443768,86293.0,86292.0,0.25506846]
[1741437329604,0.08443768,86293.0,86292.0,0.1946557]
[1741437329795,0.08443768,86293.0,86292.0,0.23027585]
[1741437329996,0.08743768,86293.0,86292.0,0.23027585]
[1741437331106,0.00531768,86293.0,86292.0,0.23027585]
[1741437331307,0.08763768,86293.0,86292.0,0.23027585]
[1741437331611,0.09636272,86293.0,86292.0,0.23027585]
[1741437333999,0.09649779,86293.0,86292.0,0.23027585]
[1741437334205,0.09636272,86293.0,86292.0,0.23027585]
[1741437334806,0.21237732,86293.0,86292.0,0.23027585]
[1741437335001,0.21226782,86293.0,86292.0,0.23027585]
[1741437335201,0.21240913,86293.0,86292.0,0.21522655]
[1741437335406,0.21226782,86293.0,86292.0,0.21522655]
[1741437335608,0.21226782,86293.0,86292.0,0.21430812]
[1741437335805,0.09636272,86293.0,86292.0,0.21430812]
[1741437336201,0.09636272,86293.0,86292.0,0.22872876]
[1741437336406,0.21226782,86293.0,86292.0,0.22872876]
[1741437337202,0.09636272,86293.0,86292.0,0.22872876]
[1741437337511,0.21226782,86293.0,86292.0,0.22872876]
[1741437340008,0.01404272,86293.0,86292.0,0.22872876]
[1741437340211,0.00531768,86293.0,86292.0,0.22872876]
[1741437340398,0.1,86300.0,86292.0,0.11282236]
[1741437340604,0.1,86300.0,86299.0,0.115897]
[1741437340804,0.1,86300.0,86299.0,0.15059872]
[1741437341213,0.1,86300.0,86299.0,0.16501936]
[1741437341402,0.1,86300.0,86299.0,0.22881936]
[1741437341811,0.102,86300.0,86299.0,0.25249516]
[1741437342504,0.10212496,86300.0,86299.0,0.25249516]
[1741437342916,0.10212496,86300.0,86299.0,0.26549484]
[1741437343511,0.10212496,86300.0,86299.0,0.27696024]
[1741437343712,0.21802066,86300.0,86299.0,0.27696024]
[1741437343917,0.2178957,86300.0,86299.0,0.14959784]
[1741437344300,0.2158957,86300.0,86299.0,0.14959784]
[1741437344506,0.1303,86300.0,86299.0,0.26549484]
[1741437345007,0.10013988,86300.0,86299.0,0.26549484]
[1741437345213,0.10013252,86300.0,86299.0,0.26549484]
[1741437345415,0.1,86300.0,86299.0,0.27695559]
[1741437346009,0.1,86300.0,86299.0,0.30557409]
[1741437346612,0.10013063,86300.0,86299.0,0.30557409]
[1741437346915,0.1,86300.0,86299.0,0.30557409]
[1741437347118,0.10014427,86300.0,86299.0,0.30557409]
[1741437347716,0.10014427,86300.0,86299.0,0.30829931]
[1741437347717,0.07405662,86300.0,86299.0,0.30829931]
[1741437347911,0.07405662,86300.0,86299.0,0.30843848]
[1741437348119,0.07405662,86300.0,86299.0,0.3533172]
[1741437348120,0.0378257,86300.0,86299.0,0.3533172]
[1741437348915,0.07533591,86318.0,86299.0,0.3533172]
[1741437348916,0.01740001,86320.0,86299.0,0.2374202]
[1741437349215,0.17334173,86330.0,86329.0,0.1158567]
[1741437349403,0.17334173,86330.0,86329.0,0.60008626]
[1741437349605,0.12344173,86330.0,86329.0,0.60192198]
[1741437350017,0.08568,86347.0,86335.0,0.1158487]
[1741437350211,0.78890951,86358.0,86335.0,0.12526528]
[1741437350212,0.27650058,86354.0,86335.0,0.12526528]
[1741437350514,0.0579193,86343.0,86337.0,0.3608]
[1741437350713,0.1158447,86339.0,86338.0,0.08102001]
[1741437351016,0.1158447,86339.0,86338.0,0.10592032]
[1741437351319,0.1784447,86339.0,86338.0,0.10592032]
[1741437351523,0.2098447,86339.0,86338.0,0.08217138]
[1741437351709,0.3598447,86339.0,86338.0,0.08217138]
[1741437351909,0.3598447,86339.0,86338.0,0.03227138]
[1741437352106,0.2098447,86339.0,86338.0,0.03227138]
[1741437352311,0.1784447,86339.0,86338.0,0.03227138]
[1741437352918,0.2652447,86339.0,86338.0,0.04550462]
[1741437353312,0.2662447,86339.0,86338.0,0.10880462]
[1741437353514,0.26826096,86339.0,86338.0,0.10880462]
[1741437353714,0.26839285,86339.0,86338.0,0.13265831]
[1741437353917,0.26826096,86339.0,86338.0,0.13265831]
[1741437354218,0.26834529,86339.0,86338.0,0.13265831]
[1741437354427,0.26834529,86339.0,86338.0,0.11942507]
[1741437354820,0.26834529,86339.0,86338.0,0.14669336]
[1741437355023,0.26842529,86339.0,86338.0,0.14667869]
[1741437355316,0.26842529,86339.0,86338.0,0.13264845]
[1741437355525,0.26842529,86339.0,86338.0,0.10184402]
[1741437355729,0.26640903,86339.0,86338.0,0.11502476]
[1741437356024,0.26842525,86339.0,86338.0,0.12905185]
[1741437356223,0.28582526,86339.0,86338.0,0.11502476]
[1741437356523,0.28582526,86339.0,86338.0,0.11587111]
[1741437356718,0.26842525,86339.0,86338.0,0.07799033]
[1741437357515,0.26842525,86339.0,86338.0,0.07767164]
[1741437358729,0.26640903,86339.0,86338.0,0.07767164]
[1741437359127,0.26842525,86339.0,86338.0,0.07767164]
[1741437359626,0.26842525,86339.0,86338.0,0.07691301]
[1741437360430,0.26842525,86339.0,86338.0,0.01461301]
[1741437360431,0.41842525,86339.0,86338.0,0.01461301]
[1741437360631,0.83415268,86339.0,86309.0,0.34451126]
[1741437360815,0.83415268,86339.0,86315.0,0.0634]
[1741437360816,0.4766661,86322.0,86315.0,0.0634]
[1741437361021,0.5638261,86322.0,86315.0,0.0634]
[1741437361223,0.5638261,86322.0,86310.0,0.032]
[1741437361419,0.57563726,86322.0,86309.0,0.34451126]
[1741437361621,1.00043726,86322.0,86309.0,0.34451126]
[1741437362127,1.15043726,86322.0,86309.0,0.34451126]
[1741437363016,0.1158809,86311.0,86310.0,0.27325903]
[1741437363222,1.2068809,86311.0,86310.0,0.27325903]
[1741437363432,1.2068809,86311.0,86304.0,0.34451126]
[1741437363433,0.115889,86305.0,86304.0,0.34451126]
[1741437363632,0.203169,86305.0,86304.0,0.34451126]
[1741437363830,0.3749813,86305.0,86304.0,0.34451126]
[1741437364230,0.4069813,86305.0,86304.0,0.34451126]
[1741437364528,0.4069813,86305.0,86304.0,0.24451126]
[1741437364718,0.4099813,86305.0,86304.0,0.24451126]
[1741437365523,0.41008176,86305.0,86304.0,0.24451126]
[1741437365725,0.5599813,86305.0,86304.0,0.24451126]
[1741437365925,0.5599813,86305.0,86298.0,0.41100425]
[1741437365926,0.4440923,86305.0,86298.0,0.41100425]
[1741437366123,0.476697,86299.0,86298.0,0.41100425]
[1741437366527,0.62681354,86299.0,86298.0,0.41100425]
[1741437366830,0.62681354,86299.0,86296.0,0.00017375]
[1741437366831,0.1158997,86297.0,86296.0,0.00017375]
[1741437367128,0.49409971,86297.0,86296.0,0.00017375]
[1741437367330,0.78305971,86297.0,86296.0,0.00017375]
[1741437367528,0.84665971,86297.0,86296.0,0.00017375]
[1741437369130,0.84865971,86297.0,86296.0,0.00017375]
[1741437369438,0.85067728,86297.0,86296.0,0.00017375]
[1741437370827,0.84865971,86297.0,86296.0,0.00017375]
[1741437371031,0.85067727,86297.0,86296.0,0.00017375]
[1741437371830,0.85076321,86297.0,86296.0,0.00017375]
[1741437372029,0.85067727,86297.0,86296.0,0.00017375]
[1741437372230,0.85082026,86297.0,86296.0,0.00017375]
[1741437372432,0.85080984,86297.0,86296.0,0.00017375]
[1741437372629,0.85079955,86297.0,86296.0,0.00017375]
[1741437372824,0.85067727,86297.0,86296.0,0.00017375]
[1741437373934,0.85067727,86297.0,86296.0,5e-08]
[1741437374132,0.73477757,86297.0,86278.0,0.0309]
[1741437374431,0.4767239,86279.0,86278.0,0.0309]
[1741437374733,0.1159346,86271.0,86270.0,0.0325]
[1741437374931,0.8464146,86271.0,86270.0,0.0325]
[1741437375128,0.8464146,86271.0,86250.0,0.3608]
[1741437375129,0.1159615,86251.0,86250.0,0.3608]
[1741437375325,0.2006015,86251.0,86250.0,0.3608]
[1741437375527,0.08764,86251.0,86250.0,0.3608]
[1741437375729,0.08764,86251.0,86250.0,0.4767629]
[1741437376128,0.08764,86251.0,86250.0,0.5378629]
[1741437376637,0.08764,86251.0,86250.0,0.5690629]
[1741437377534,0.08778483,86251.0,86250.0,0.5690629]
[1741437377840,0.08764,86251.0,86250.0,0.5710629]
[1741437378132,0.08779044,86251.0,86250.0,0.5710629]
[1741437378333,0.08764,86251.0,86250.0,0.5710629]
[1741437378543,0.08764,86251.0,86250.0,0.58405439]
[1741437378729,0.08764,86251.0,86250.0,0.58405435]
[1741437379935,0.08764,86251.0,86250.0,0.5710629]
[1741437380240,0.08764,86251.0,86250.0,0.58401683]
[1741437381836,0.01740001,86253.0,86252.0,0.1159602]
[1741437382036,0.22107881,86253.0,86252.0,0.1159602]
[1741437382432,0.22107881,86253.0,86250.0,0.45618]
[1741437382636,0.1159615,86251.0,86250.0,0.4551]
[1741437382836,0.1159615,86251.0,86250.0,0.0943]
[1741437383234,0.1149615,86251.0,86250.0,0.0923]
[1741437383933,0.31935873,86251.0,86250.0,0.0923]
[1741437384127,0.32137716,86251.0,86250.0,0.0923]
[1741437384932,0.32137716,86251.0,86250.0,0.0943]
[1741437385132,0.11697993,86251.0,86250.0,0.0943]
[1741437385542,0.12297993,86251.0,86250.0,0.0933]
[1741437385732,0.1209615,86251.0,86250.0,0.0933]
[1741437386947,0.12297982,86251.0,86250.0,0.0933]
[1741437387843,0.12097982,86251.0,86250.0,0.0923]
[1741437388737,0.12110099,86251.0,86250.0,0.0923]
[1741437388942,0.11709324,86251.0,86250.0,0.0923]
[1741437389133,0.12109762,86251.0,86250.0,0.0923]
[1741437389333,0.12097982,86251.0,86250.0,0.0923]
[1741437389534,0.11697982,86251.0,86250.0,0.0923]
[1741437389740,0.12197982,86251.0,86250.0,0.0923]
[1741437391740,0.00064,86271.0,86258.0,0.1159521]
[1741437391945,0.08787661,86279.0,86272.0,0.0579662]
[1741437392243,0.02241137,86285.0,86284.0,0.1159172]
[1741437392439,0.02593013,86301.0,86291.0,0.1159078]
[1741437392745,0.02593013,86301.0,86291.0,0.48970644]
[1741437392935,0.00017357,86300.0,86291.0,0.48970644]
[1741437393338,0.16822939,86292.0,86291.0,0.48970644]
[1741437393542,0.15202939,86292.0,86291.0,0.50127475]
[1741437393936,0.00017357,86300.0,86291.0,0.50127475]
[1741437393937,0.00866239,86341.0,86338.0,0.1158447]
[1741437394243,0.25629087,86338.0,86334.0,0.3608]
[1741437394541,0.01740001,86336.0,86324.0,0.3608]
[1741437394747,0.1158573,86329.0,86325.0,0.01299917]
[1741437394944,0.0332,86328.0,86326.0,0.01299917]
[1741437395142,0.0663,86328.0,86324.0,0.3608]
[1741437395446,0.0663,86328.0,86325.0,0.01295219]
[1741437395447,0.1158608,86326.0,86325.0,0.01295219]
[1741437395639,0.01740001,86325.0,86318.0,0.00017373]
[1741437395947,0.01740001,86323.0,86319.0,0.01295335]
[1741437396142,0.0663,86322.0,86320.0,0.115868]
[1741437396348,0.44599089,86322.0,86320.0,0.2317362]
[1741437396642,0.25629087,86321.0,86318.0,0.00017373]
[1741437396846,0.1158702,86319.0,86318.0,0.00017373]
[1741437397240,0.37216107,86319.0,86318.0,0.00017373]
[1741437397442,0.43736107,86319.0,86318.0,0.00017373]
[1741437397952,0.0579406,86311.0,86298.0,0.3608]
[1741437398248,0.69969088,86319.0,86298.0,0.3608]
[1741437398249,0.01740001,86308.0,86298.0,0.3608]
[1741437398435,0.1538,86307.0,86306.0,0.1158876]
[1741437398640,0.41009087,86307.0,86298.0,0.3608]
[1741437398843,0.41009087,86307.0,86303.0,0.1158908]
[1741437398844,0.25629087,86306.0,86303.0,0.1158908]
[1741437399252,0.33889088,86305.0,86298.0,0.3608]
[1741437399548,0.1158964,86300.0,86298.0,0.3608]